[Event "December 5 Late 2023"]
[Site "https://www.chess.com"]
[Date "2023.12.05"]
[Round "2"]
[White "Mortazavi, Ali"]
[Black "Demchenko, Anton"]
[Result "0-1"]
[Board "37"]
[TimeControl "180+1"]
[WhiteFideId "401323"]
[BlackFideId "4160258"]
[WhiteElo "2561"]
[BlackElo "2890"]
[WhiteTeam "ENG"]
[BlackTeam "SLO"]
[WhiteClock "0:00:09"]
[BlackClock "0:00:41"]

1. Nf3 {[%clk 0:02:57]}  Nf6 {[%clk 0:02:59]} 2. g3 {[%clk 0:02:58]}  d6 {[%clk 0:02:59]} 3. Bg2 {[%clk 0:02:59]}  e5 {[%clk 0:03:00]} 4. d3 {[%clk 0:02:59]}  Be7 {[%clk 0:03:00]} 5. O-O {[%clk 0:02:59]}  O-O {[%clk 0:03:01]} 6. e4 {[%clk 0:02:57]}  h6 {[%clk 0:02:50]} 7. Nc3 {[%clk 0:02:55]}  c5 {[%clk 0:02:50]} 8. Nh4 {[%clk 0:02:45]}  Nc6 {[%clk 0:02:48]} 9. Nf5 {[%clk 0:02:44]}  Bxf5 {[%clk 0:02:46]} 10. exf5 {[%clk 0:02:44]}  d5 {[%clk 0:02:47]} 11. g4 {[%clk 0:02:36]}  Rc8 {[%clk 0:02:23]} 12. h3 {[%clk 0:02:35]}  Re8 {[%clk 0:02:17]} 13. f4 {[%clk 0:02:23]}  exf4 {[%clk 0:02:08]} 14. Bxf4 {[%clk 0:02:23]}  Bd6 {[%clk 0:02:08]} 15. Bd2 {[%clk 0:02:10]}  Nd4 {[%clk 0:02:04]} 16. g5 {[%clk 0:01:47]}  hxg5 {[%clk 0:02:04]} 17. Bxg5 {[%clk 0:01:47]}  Bb8 {[%clk 0:02:04]} 18. Qd2 {[%clk 0:01:36]}  Qb6 {[%clk 0:01:52]} 19. Rae1 {[%clk 0:01:24]}  c4 {[%clk 0:01:47]} 20. Kh1 {[%clk 0:01:24]}  Rxe1 {[%clk 0:01:46]} 21. Qxe1 {[%clk 0:01:20]}  Nxc2 {[%clk 0:01:26]} 22. Qd2 {[%clk 0:00:49]}  cxd3 {[%clk 0:01:25]} 23. Qxd3 {[%clk 0:00:50]}  Nb4 {[%clk 0:01:25]} 24. Qd2 {[%clk 0:00:40]}  Nh5 {[%clk 0:01:22]} 25. Bh4 {[%clk 0:00:34]}  Qd6 {[%clk 0:01:17]} 26. Bxd5 {[%clk 0:00:27]}  Nf4 {[%clk 0:00:52]} 27. Ne4 {[%clk 0:00:20]}  Qxd5 {[%clk 0:00:50]} 28. Qxb4 {[%clk 0:00:09]}  Rc4 {[%clk 0:00:41]} 0-1

[Event "December 5 Late 2023"]
[Site "https://www.chess.com"]
[Date "2023.12.05"]
[Round "2"]
[White "Yang, Kevin"]
[Black "Alexandre, Anne Shopie Elizabeth"]
[Result "0-1"]
[Board "39"]
[TimeControl "180+1"]
[WhiteFideId "30908485"]
[BlackFideId "11902418"]
[WhiteElo "2560"]
[BlackElo "2873"]
[WhiteTeam "USA"]
[BlackTeam "HAI"]
[WhiteClock "0:00:01"]
[BlackClock "0:01:40"]

1. d4 {[%clk 0:03:00]}  Nf6 {[%clk 0:02:59]} 2. c4 {[%clk 0:03:00]}  d6 {[%clk 0:02:59]} 3. Nf3 {[%clk 0:02:58]}  Bf5 {[%clk 0:02:59]} 4. Nc3 {[%clk 0:02:57]}  h6 {[%clk 0:02:58]} 5. g3 {[%clk 0:02:57]}  Nbd7 {[%clk 0:02:56]} 6. Bg2 {[%clk 0:02:58]}  c6 {[%clk 0:02:56]} 7. O-O {[%clk 0:02:56]}  Bh7 {[%clk 0:02:56]} 8. b3 {[%clk 0:02:53]}  e6 {[%clk 0:02:55]} 9. Re1 {[%clk 0:02:51]}  d5 {[%clk 0:02:55]} 10. Nd2 {[%clk 0:02:50]}  Bb4 {[%clk 0:02:55]} 11. Bb2 {[%clk 0:02:49]}  Qa5 {[%clk 0:02:55]} 12. Qc1 {[%clk 0:02:48]}  O-O {[%clk 0:02:55]} 13. a3 {[%clk 0:02:47]}  Be7 {[%clk 0:02:55]} 14. b4 {[%clk 0:02:38]}  Qd8 {[%clk 0:02:55]} 15. e4 {[%clk 0:02:36]}  dxe4 {[%clk 0:02:54]} 16. Ncxe4 {[%clk 0:02:33]}  Nxe4 {[%clk 0:02:54]} 17. Nxe4 {[%clk 0:02:32]}  Nf6 {[%clk 0:02:54]} 18. Nc5 {[%clk 0:02:27]}  Qc7 {[%clk 0:02:54]} 19. Qc3 {[%clk 0:01:41]}  a5 {[%clk 0:02:53]} 20. b5 {[%clk 0:01:28]}  cxb5 {[%clk 0:02:50]} 21. Bxb7 {[%clk 0:01:20]}  Rab8 {[%clk 0:02:47]} 22. Bg2 {[%clk 0:01:00]}  bxc4 {[%clk 0:02:33]} 23. Na6 {[%clk 0:00:57]}  Qb6 {[%clk 0:02:33]} 24. Nxb8 {[%clk 0:00:57]}  Rxb8 {[%clk 0:02:34]} 25. Bc1 {[%clk 0:00:54]}  Bd3 {[%clk 0:02:34]} 26. Bd2 {[%clk 0:00:50]}  a4 {[%clk 0:02:32]} 27. Bf4 {[%clk 0:00:32]}  Rd8 {[%clk 0:02:29]} 28. Be5 {[%clk 0:00:25]}  Nd5 {[%clk 0:02:28]} 29. Bxd5 {[%clk 0:00:24]}  Rxd5 {[%clk 0:02:28]} 30. Red1 {[%clk 0:00:20]}  Qb3 {[%clk 0:02:27]} 31. Qd2 {[%clk 0:00:15]}  Bxa3 {[%clk 0:02:22]} 32. Qf4 {[%clk 0:00:14]}  Bf8 {[%clk 0:02:21]} 33. Qg4 {[%clk 0:00:10]}  a3 {[%clk 0:02:21]} 34. Rdc1 {[%clk 0:00:05]}  a2 {[%clk 0:02:21]} 35. Qd1 {[%clk 0:00:05]}  Bb1 {[%clk 0:02:18]} 36. Rcxb1 {[%clk 0:00:04]}  axb1=Q {[%clk 0:02:17]} 37. Qxb1 {[%clk 0:00:03]}  Qxb1+ {[%clk 0:02:17]} 38. Rxb1 {[%clk 0:00:04]}  f6 {[%clk 0:02:17]} 39. Bf4 {[%clk 0:00:03]}  Rxd4 {[%clk 0:02:17]} 40. Rb8 {[%clk 0:00:03]}  Kf7 {[%clk 0:02:13]} 41. Rc8 {[%clk 0:00:03]}  g5 {[%clk 0:02:02]} 42. Be3 {[%clk 0:00:03]}  Re4 {[%clk 0:02:03]} 43. Kf1 {[%clk 0:00:03]}  g4 {[%clk 0:02:01]} 44. Ke2 {[%clk 0:00:03]}  f5 {[%clk 0:02:01]} 45. Rc7+ {[%clk 0:00:03]}  Kg6 {[%clk 0:02:01]} 46. Kd2 {[%clk 0:00:04]}  Bg7 {[%clk 0:01:59]} 47. Kc2 {[%clk 0:00:04]}  Bf6 {[%clk 0:01:58]} 48. Rc6 {[%clk 0:00:04]}  Bg5 {[%clk 0:01:58]} 49. Bc5 {[%clk 0:00:03]}  h5 {[%clk 0:01:56]} 50. Kc3 {[%clk 0:00:03]}  Bf6+ {[%clk 0:01:55]} 51. Kc2 {[%clk 0:00:03]}  h4 {[%clk 0:01:55]} 52. Be3 {[%clk 0:00:03]}  h3 {[%clk 0:01:54]} 53. Bc5 {[%clk 0:00:03]}  Kf7 {[%clk 0:01:50]} 54. Rc7+ {[%clk 0:00:03]}  Ke8 {[%clk 0:01:51]} 55. Rc6 {[%clk 0:00:03]}  Kd7 {[%clk 0:01:46]} 56. Rd6+ {[%clk 0:00:03]}  Kc7 {[%clk 0:01:46]} 57. Ra6 {[%clk 0:00:03]}  Kb7 {[%clk 0:01:44]} 58. Rb6+ {[%clk 0:00:03]}  Kc7 {[%clk 0:01:44]} 59. Ra6 {[%clk 0:00:04]}  c3 {[%clk 0:01:44]} 60. Be3 {[%clk 0:00:03]}  Kd7 {[%clk 0:01:41]} 61. Rb6 {[%clk 0:00:03]}  Ke7 {[%clk 0:01:41]} 62. Ra6 {[%clk 0:00:03]}  Kf7 {[%clk 0:01:42]} 63. Bc5 {[%clk 0:00:03]}  Bd4 {[%clk 0:01:39]} 64. Bxd4 {[%clk 0:00:02]}  Rxd4 {[%clk 0:01:40]} 65. Kxc3 {[%clk 0:00:03]}  Rd1 {[%clk 0:01:40]} 66. Ra7+ {[%clk 0:00:01]}  Kf6 {[%clk 0:01:41]} 67. Rh7 {[%clk 0:00:01]}  Rh1 {[%clk 0:01:40]} 68. Kd3 {[%clk 0:00:02]}  Rxh2 {[%clk 0:01:41]} 69. Ke3 {[%clk 0:00:02]}  Rh1 {[%clk 0:01:41]} 70. f3 {[%clk 0:00:03]}  Rf1 {[%clk 0:01:38]} 71. fxg4 {[%clk 0:00:02]}  fxg4 {[%clk 0:01:39]} 72. Rh5 {[%clk 0:00:02]}  Rf3+ {[%clk 0:01:39]} 73. Ke4 {[%clk 0:00:01]}  Rxg3 {[%clk 0:01:40]} 0-1

[Event "December 5 Late 2023"]
[Site "https://www.chess.com"]
[Date "2023.12.05"]
[Round "2"]
[White "Hong, Andrew"]
[Black "Soderstrom, Adrian"]
[Result "0-1"]
[Board "40"]
[TimeControl "180+1"]
[WhiteFideId "2099438"]
[BlackFideId "1745786"]
[WhiteElo "2869"]
[BlackElo "2558"]
[WhiteTeam "USA"]
[BlackTeam "SWE"]
[WhiteClock "0:00:03"]
[BlackClock "0:00:10"]

1. d4 {[%clk 0:03:00]}  d5 {[%clk 0:02:57]} 2. Nf3 {[%clk 0:02:59]}  Nf6 {[%clk 0:02:57]} 3. c4 {[%clk 0:02:59]}  e6 {[%clk 0:02:58]} 4. Nc3 {[%clk 0:03:00]}  Be7 {[%clk 0:02:57]} 5. Bf4 {[%clk 0:02:59]}  O-O {[%clk 0:02:48]} 6. e3 {[%clk 0:03:00]}  c5 {[%clk 0:02:49]} 7. cxd5 {[%clk 0:02:59]}  Nxd5 {[%clk 0:02:39]} 8. Nxd5 {[%clk 0:02:58]}  Qxd5 {[%clk 0:02:32]} 9. Rc1 {[%clk 0:02:57]}  cxd4 {[%clk 0:02:22]} 10. Qxd4 {[%clk 0:02:56]}  Qxd4 {[%clk 0:02:21]} 11. Nxd4 {[%clk 0:02:56]}  Bd7 {[%clk 0:02:21]} 12. Rc7 {[%clk 0:02:54]}  Bb4+ {[%clk 0:02:09]} 13. Kd1 {[%clk 0:02:53]}  Bc6 {[%clk 0:02:08]} 14. Bd3 {[%clk 0:02:41]}  Ba5 {[%clk 0:02:06]} 15. Nxc6 {[%clk 0:02:39]}  Nxc6 {[%clk 0:01:35]} 16. Rxb7 {[%clk 0:02:36]}  Rfd8 {[%clk 0:01:36]} 17. Ke2 {[%clk 0:02:34]}  Nb4 {[%clk 0:01:26]} 18. Rd1 {[%clk 0:02:03]}  Nd5 {[%clk 0:01:20]} 19. Be5 {[%clk 0:01:51]}  Bb6 {[%clk 0:01:19]} 20. Be4 {[%clk 0:01:28]}  Rac8 {[%clk 0:01:06]} 21. Rd2 {[%clk 0:01:12]}  Nf6 {[%clk 0:01:00]} 22. Rxd8+ {[%clk 0:01:07]}  Rxd8 {[%clk 0:01:00]} 23. Bc6 {[%clk 0:01:05]}  Nd5 {[%clk 0:00:54]} 24. a3 {[%clk 0:01:02]}  Kf8 {[%clk 0:00:41]} 25. b4 {[%clk 0:00:48]}  f6 {[%clk 0:00:38]} 26. Bg3 {[%clk 0:00:40]}  Nc3+ {[%clk 0:00:37]} 27. Kf3 {[%clk 0:00:40]}  e5 {[%clk 0:00:36]} 28. a4 {[%clk 0:00:32]}  Rc8 {[%clk 0:00:35]} 29. Bd7 {[%clk 0:00:29]}  Rc7 {[%clk 0:00:35]} 30. Rxc7 {[%clk 0:00:23]}  Bxc7 {[%clk 0:00:36]} 31. a5 {[%clk 0:00:16]}  Ke7 {[%clk 0:00:36]} 32. Bc6 {[%clk 0:00:15]}  f5 {[%clk 0:00:36]} 33. e4 {[%clk 0:00:11]}  f4 {[%clk 0:00:23]} 34. Bh4+ {[%clk 0:00:11]}  Kd6 {[%clk 0:00:24]} 35. Be8 {[%clk 0:00:12]}  Na2 {[%clk 0:00:22]} 36. b5 {[%clk 0:00:08]}  Bxa5 {[%clk 0:00:22]} 37. g3 {[%clk 0:00:09]}  fxg3 {[%clk 0:00:22]} 38. Bxg3 {[%clk 0:00:06]}  Nb4 {[%clk 0:00:21]} 39. Kg4 {[%clk 0:00:06]}  Ke6 {[%clk 0:00:20]} 40. h4 {[%clk 0:00:04]}  Nd3 {[%clk 0:00:20]} 41. h5 {[%clk 0:00:04]}  Bb6 {[%clk 0:00:21]} 42. Bc6 {[%clk 0:00:03]}  Nxf2+ {[%clk 0:00:20]} 43. Kf3 {[%clk 0:00:03]}  Nd3 {[%clk 0:00:20]} 44. Bd5+ {[%clk 0:00:04]}  Kd6 {[%clk 0:00:20]} 45. Kg4 {[%clk 0:00:05]}  Nf4 {[%clk 0:00:20]} 46. Bg8 {[%clk 0:00:03]}  h6 {[%clk 0:00:20]} 47. Bf7 {[%clk 0:00:04]}  Ke7 {[%clk 0:00:20]} 48. Bc4 {[%clk 0:00:04]}  Kf6 {[%clk 0:00:20]} 49. Bh4+ {[%clk 0:00:04]}  g5 {[%clk 0:00:20]} 50. hxg6+ {[%clk 0:00:03]}  Kxg6 {[%clk 0:00:20]} 51. Be7 {[%clk 0:00:03]}  h5+ {[%clk 0:00:20]} 52. Kf3 {[%clk 0:00:04]}  Bd4 {[%clk 0:00:15]} 53. Bd6 {[%clk 0:00:03]}  Kf6 {[%clk 0:00:15]} 54. Bc7 {[%clk 0:00:03]}  Ng6 {[%clk 0:00:15]} 55. Kg3 {[%clk 0:00:03]}  h4+ {[%clk 0:00:14]} 56. Kg4 {[%clk 0:00:04]}  Bf2 {[%clk 0:00:14]} 57. Bd8+ {[%clk 0:00:03]}  Kg7 {[%clk 0:00:14]} 58. Bd5 {[%clk 0:00:03]}  Nf4 {[%clk 0:00:11]} 59. Bc6 {[%clk 0:00:02]}  h3 {[%clk 0:00:10]} 60. Bc7 {[%clk 0:00:03]}  h2 {[%clk 0:00:10]} 61. Bxe5+ {[%clk 0:00:03]}  Kf7 {[%clk 0:00:10]} 62. Bxf4 {[%clk 0:00:03]}  h1=Q {[%clk 0:00:11]} 63. e5 {[%clk 0:00:04]}  Qh4+ {[%clk 0:00:11]} 64. Kf3 {[%clk 0:00:04]}  Bb6 {[%clk 0:00:08]} 65. Bd5+ {[%clk 0:00:04]}  Ke7 {[%clk 0:00:09]} 66. Ke4 {[%clk 0:00:02]}  Qh7+ {[%clk 0:00:09]} 67. Kf3 {[%clk 0:00:01]}  Qd3+ {[%clk 0:00:09]} 68. Kg4 {[%clk 0:00:02]}  Qxd5 {[%clk 0:00:10]} 69. Kf5 {[%clk 0:00:01]}  Qe6+ {[%clk 0:00:10]} 70. Ke4 {[%clk 0:00:01]}  Qg6+ {[%clk 0:00:11]} 71. Kf3 {[%clk 0:00:02]}  Ke6 {[%clk 0:00:11]} 72. Bg3 {[%clk 0:00:03]}  Qf5+ {[%clk 0:00:11]} 73. Kg2 {[%clk 0:00:03]}  Qg4 {[%clk 0:00:11]} 74. Kh1 {[%clk 0:00:03]}  Qh3+ {[%clk 0:00:08]} 75. Bh2 {[%clk 0:00:02]}  Qf1+ {[%clk 0:00:09]} 76. Bg1 {[%clk 0:00:03]}  Qxg1# {[%clk 0:00:10]} 0-1

[Event "December 5 Late 2023"]
[Site "https://www.chess.com"]
[Date "2023.12.05"]
[Round "2"]
[White "Mikaelyan, Arman"]
[Black "Kashefi, Amir Hosein"]
[Result "1-0"]
[Board "45"]
[TimeControl "180+1"]
[WhiteFideId "13304852"]
[BlackFideId "12557935"]
[WhiteElo "2849"]
[BlackElo "2541"]
[WhiteTeam "ARM"]
[BlackTeam "IRI"]
[WhiteClock "0:01:38"]
[BlackClock "0:00:00"]

1. Nf3 {[%clk 0:03:00]}  d6 {[%clk 0:02:58]} 2. g3 {[%clk 0:03:00]}  Nf6 {[%clk 0:02:59]} 3. Bg2 {[%clk 0:03:01]}  g6 {[%clk 0:02:59]} 4. O-O {[%clk 0:03:01]}  Bg7 {[%clk 0:02:58]} 5. c4 {[%clk 0:03:02]}  O-O {[%clk 0:02:58]} 6. Nc3 {[%clk 0:03:03]}  e5 {[%clk 0:02:51]} 7. d3 {[%clk 0:03:04]}  c6 {[%clk 0:02:49]} 8. Rb1 {[%clk 0:03:04]}  Qc7 {[%clk 0:02:48]} 9. Bg5 {[%clk 0:03:03]}  Be6 {[%clk 0:02:45]} 10. b4 {[%clk 0:03:03]}  Nbd7 {[%clk 0:02:44]} 11. Qd2 {[%clk 0:03:01]}  Rfe8 {[%clk 0:02:42]} 12. b5 {[%clk 0:03:01]}  Rac8 {[%clk 0:02:39]} 13. bxc6 {[%clk 0:03:00]}  bxc6 {[%clk 0:02:40]} 14. Rb2 {[%clk 0:03:01]}  Rb8 {[%clk 0:02:39]} 15. Rxb8 {[%clk 0:02:52]}  Rxb8 {[%clk 0:02:38]} 16. Bh6 {[%clk 0:02:51]}  Bxh6 {[%clk 0:02:35]} 17. Qxh6 {[%clk 0:02:51]}  Qb6 {[%clk 0:02:34]} 18. Ng5 {[%clk 0:02:49]}  Re8 {[%clk 0:02:12]} 19. Nce4 {[%clk 0:02:48]}  d5 {[%clk 0:01:58]} 20. Nxe6 {[%clk 0:02:39]}  Rxe6 {[%clk 0:01:55]} 21. Ng5 {[%clk 0:02:39]}  Rd6 {[%clk 0:01:44]} 22. cxd5 {[%clk 0:02:39]}  cxd5 {[%clk 0:01:43]} 23. Bh3 {[%clk 0:02:31]}  Nf8 {[%clk 0:01:38]} 24. Qh4 {[%clk 0:02:12]}  Qb2 {[%clk 0:01:32]} 25. Qa4 {[%clk 0:02:05]}  Qxe2 {[%clk 0:01:29]} 26. Qxa7 {[%clk 0:02:05]}  N6d7 {[%clk 0:00:22]} 27. Qc7 {[%clk 0:02:04]}  Rf6 {[%clk 0:00:11]} 28. Bxd7 {[%clk 0:02:02]}  Nxd7 {[%clk 0:00:11]} 29. Qxd7 {[%clk 0:02:03]}  Qxa2 {[%clk 0:00:11]} 30. Qe8+ {[%clk 0:01:55]}  Kg7 {[%clk 0:00:11]} 31. Qxe5 {[%clk 0:01:56]}  Qa6 {[%clk 0:00:09]} 32. d4 {[%clk 0:01:54]}  h6 {[%clk 0:00:07]} 33. Nh3 {[%clk 0:01:53]}  Kh7 {[%clk 0:00:07]} 34. Nf4 {[%clk 0:01:53]}  Rf5 {[%clk 0:00:07]} 35. Qe7 {[%clk 0:01:50]}  Qb6 {[%clk 0:00:04]} 36. Rd1 {[%clk 0:01:38]}  Qb3 {[%clk 0:00:04]} 37. Qe2 {[%clk 0:01:38]}  Qc3 {[%clk 0:00:02]} 38. Qd3 {[%clk 0:01:38]}  Qb2 {[%clk 0:00:00]} 39. h4 {[%clk 0:01:38]} 1-0

[Event "December 5 Late 2023"]
[Site "https://www.chess.com"]
[Date "2023.12.05"]
[Round "2"]
[White "Shuvalova, Polina"]
[Black "Cervantes Landeiro, Thalia"]
[Result "1-0"]
[Board "47"]
[TimeControl "180+1"]
[WhiteFideId "24171760"]
[BlackFideId "3520498"]
[WhiteElo "2845"]
[BlackElo "2535"]
[WhiteTeam "RUS"]
[BlackTeam "USA"]
[WhiteClock "0:00:41"]
[BlackClock "0:00:20"]

1. e4 {[%clk 0:03:00]}  c5 {[%clk 0:02:59]} 2. Nf3 {[%clk 0:03:01]}  d6 {[%clk 0:02:59]} 3. Bb5+ {[%clk 0:03:01]}  Nd7 {[%clk 0:02:59]} 4. O-O {[%clk 0:03:01]}  a6 {[%clk 0:02:59]} 5. Bd3 {[%clk 0:03:01]}  Ngf6 {[%clk 0:02:58]} 6. Re1 {[%clk 0:03:01]}  b5 {[%clk 0:02:56]} 7. a4 {[%clk 0:03:00]}  c4 {[%clk 0:02:47]} 8. Bf1 {[%clk 0:02:57]}  Bb7 {[%clk 0:02:47]} 9. d3 {[%clk 0:02:50]}  cxd3 {[%clk 0:02:41]} 10. Bxd3 {[%clk 0:02:47]}  bxa4 {[%clk 0:02:39]} 11. Nc3 {[%clk 0:02:36]}  g6 {[%clk 0:02:28]} 12. Nxa4 {[%clk 0:02:29]}  Bg7 {[%clk 0:02:28]} 13. Bd2 {[%clk 0:02:26]}  O-O {[%clk 0:02:26]} 14. h3 {[%clk 0:02:24]}  Bc6 {[%clk 0:02:16]} 15. Bc3 {[%clk 0:02:18]}  Qc7 {[%clk 0:01:59]} 16. Qd2 {[%clk 0:02:14]}  Rfd8 {[%clk 0:01:57]} 17. Ba5 {[%clk 0:02:09]}  Qb7 {[%clk 0:01:52]} 18. Bxd8 {[%clk 0:02:08]}  Rxd8 {[%clk 0:01:53]} 19. Nc3 {[%clk 0:02:08]}  Nc5 {[%clk 0:01:45]} 20. Nd4 {[%clk 0:01:37]}  Nfxe4 {[%clk 0:01:34]} 21. Nxe4 {[%clk 0:01:29]}  Nxe4 {[%clk 0:01:34]} 22. Bxe4 {[%clk 0:01:25]}  Bxe4 {[%clk 0:01:34]} 23. c3 {[%clk 0:01:25]}  Bxg2 {[%clk 0:01:29]} 24. Qg5 {[%clk 0:01:17]}  Bxh3 {[%clk 0:01:19]} 25. Rxe7 {[%clk 0:01:13]}  Qxb2 {[%clk 0:01:14]} 26. Rae1 {[%clk 0:01:13]}  Bxd4 {[%clk 0:00:54]} 27. cxd4 {[%clk 0:01:07]}  Qxd4 {[%clk 0:00:54]} 28. R7e4 {[%clk 0:00:52]}  Qb6 {[%clk 0:00:45]} 29. Qh6 {[%clk 0:00:52]}  Be6 {[%clk 0:00:44]} 30. Rh4 {[%clk 0:00:51]}  d5 {[%clk 0:00:27]} 31. Qxh7+ {[%clk 0:00:49]}  Kf8 {[%clk 0:00:27]} 32. Rf4 {[%clk 0:00:46]}  d4 {[%clk 0:00:21]} 33. Qh8+ {[%clk 0:00:44]}  Ke7 {[%clk 0:00:21]} 34. Qf6+ {[%clk 0:00:45]}  Ke8 {[%clk 0:00:20]} 35. Qxf7# {[%clk 0:00:41]} 1-0

[Event "December 5 Late 2023"]
[Site "https://www.chess.com"]
[Date "2023.12.05"]
[Round "2"]
[White "Kopczynski, Michal"]
[Black "Mekhitarian, Krikor Sevag"]
[Result "0-1"]
[Board "48"]
[TimeControl "180+1"]
[WhiteFideId "1124200"]
[BlackFideId "2107660"]
[WhiteElo "2533"]
[BlackElo "2845"]
[WhiteTeam "POL"]
[BlackTeam "BRA"]
[WhiteClock "0:01:46"]
[BlackClock "0:01:06"]

1. e4 {[%clk 0:03:00]}  e6 {[%clk 0:02:57]} 2. d4 {[%clk 0:03:01]}  d5 {[%clk 0:02:56]} 3. Nc3 {[%clk 0:03:02]}  Nf6 {[%clk 0:02:51]} 4. e5 {[%clk 0:03:02]}  Nfd7 {[%clk 0:02:51]} 5. f4 {[%clk 0:03:03]}  c5 {[%clk 0:02:51]} 6. dxc5 {[%clk 0:03:03]}  Nc6 {[%clk 0:02:46]} 7. Nf3 {[%clk 0:03:04]}  Bxc5 {[%clk 0:02:27]} 8. Bd3 {[%clk 0:03:04]}  a6 {[%clk 0:02:26]} 9. Qe2 {[%clk 0:03:04]}  b5 {[%clk 0:02:25]} 10. Bd2 {[%clk 0:03:04]}  Be7 {[%clk 0:02:01]} 11. O-O-O {[%clk 0:03:01]}  Nc5 {[%clk 0:02:01]} 12. f5 {[%clk 0:03:00]}  b4 {[%clk 0:02:00]} 13. Nb1 {[%clk 0:02:58]}  Qa5 {[%clk 0:01:58]} 14. fxe6 {[%clk 0:02:54]}  Bxe6 {[%clk 0:01:53]} 15. a3 {[%clk 0:02:24]}  Qb6 {[%clk 0:01:38]} 16. axb4 {[%clk 0:02:14]}  Nxb4 {[%clk 0:01:33]} 17. Bxb4 {[%clk 0:02:09]}  Qxb4 {[%clk 0:01:33]} 18. Qd2 {[%clk 0:02:08]}  Qb6 {[%clk 0:01:21]} 19. Nd4 {[%clk 0:02:01]}  Rb8 {[%clk 0:01:17]} 20. c3 {[%clk 0:01:57]}  Nxd3+ {[%clk 0:01:12]} 21. Kc2 {[%clk 0:01:46]}  Nxb2 {[%clk 0:01:06]} 0-1

[Event "December 5 Late 2023"]
[Site "https://www.chess.com"]
[Date "2023.12.05"]
[Round "2"]
[White "Livaic, Leon"]
[Black "Korchynskyi, Mykola"]
[Result "1-0"]
[Board "49"]
[TimeControl "180+1"]
[WhiteFideId "14531534"]
[BlackFideId "34138005"]
[WhiteElo "2839"]
[BlackElo "2530"]
[WhiteTeam "CRO"]
[BlackTeam "UKR"]
[WhiteClock "0:00:06"]
[BlackClock "0:00:02"]

1. d4 {[%clk 0:03:00]}  d5 {[%clk 0:03:00]} 2. c4 {[%clk 0:02:58]}  e6 {[%clk 0:02:46]} 3. Nf3 {[%clk 0:02:57]}  Nf6 {[%clk 0:02:46]} 4. Nc3 {[%clk 0:02:57]}  Be7 {[%clk 0:02:46]} 5. g3 {[%clk 0:02:56]}  O-O {[%clk 0:02:47]} 6. Bg2 {[%clk 0:02:57]}  b6 {[%clk 0:02:47]} 7. cxd5 {[%clk 0:02:56]}  exd5 {[%clk 0:02:36]} 8. O-O {[%clk 0:02:56]}  Bb7 {[%clk 0:02:36]} 9. Ne5 {[%clk 0:02:53]}  Nbd7 {[%clk 0:02:36]} 10. Bg5 {[%clk 0:02:44]}  c6 {[%clk 0:02:34]} 11. f4 {[%clk 0:02:43]}  Rc8 {[%clk 0:02:31]} 12. Qd3 {[%clk 0:02:40]}  h6 {[%clk 0:02:28]} 13. Bh4 {[%clk 0:02:27]}  c5 {[%clk 0:02:22]} 14. e3 {[%clk 0:02:10]}  cxd4 {[%clk 0:02:14]} 15. exd4 {[%clk 0:02:09]}  Re8 {[%clk 0:02:10]} 16. Rfe1 {[%clk 0:02:01]}  Ne4 {[%clk 0:01:42]} 17. Bxe7 {[%clk 0:01:52]}  Rxe7 {[%clk 0:01:39]} 18. Nxe4 {[%clk 0:01:09]}  dxe4 {[%clk 0:01:40]} 19. Bxe4 {[%clk 0:01:09]}  Bxe4 {[%clk 0:01:40]} 20. Qxe4 {[%clk 0:01:08]}  Nf6 {[%clk 0:01:40]} 21. Qd3 {[%clk 0:01:07]}  Qd5 {[%clk 0:01:38]} 22. Rac1 {[%clk 0:01:04]}  Rd8 {[%clk 0:01:37]} 23. Red1 {[%clk 0:00:46]}  Rde8 {[%clk 0:01:19]} 24. Qc4 {[%clk 0:00:43]}  Qe4 {[%clk 0:01:16]} 25. d5 {[%clk 0:00:39]}  Qe3+ {[%clk 0:00:54]} 26. Kg2 {[%clk 0:00:39]}  Ne4 {[%clk 0:00:32]} 27. Rc2 {[%clk 0:00:28]}  Nd6 {[%clk 0:00:24]} 28. Qd3 {[%clk 0:00:26]}  Rxe5 {[%clk 0:00:19]} 29. fxe5 {[%clk 0:00:24]}  Qxe5 {[%clk 0:00:20]} 30. Rdd2 {[%clk 0:00:20]}  Nf5 {[%clk 0:00:17]} 31. Re2 {[%clk 0:00:18]}  Ne3+ {[%clk 0:00:18]} 32. Kg1 {[%clk 0:00:18]}  f5 {[%clk 0:00:04]} 33. d6 {[%clk 0:00:17]}  f4 {[%clk 0:00:03]} 34. d7 {[%clk 0:00:18]}  Rd8 {[%clk 0:00:01]} 35. gxf4 {[%clk 0:00:18]}  Qxf4 {[%clk 0:00:01]} 36. Qxe3 {[%clk 0:00:15]}  Qg4+ {[%clk 0:00:02]} 37. Qg3 {[%clk 0:00:15]}  Qd4+ {[%clk 0:00:03]} 38. Qf2 {[%clk 0:00:13]}  Qg4+ {[%clk 0:00:03]} 39. Kh1 {[%clk 0:00:09]}  Rxd7 {[%clk 0:00:02]} 40. Rc1 {[%clk 0:00:07]}  Qg6 {[%clk 0:00:01]} 41. Rg1 {[%clk 0:00:06]}  Qc6+ {[%clk 0:00:01]} 42. Qg2 {[%clk 0:00:07]}  Qf6 {[%clk 0:00:01]} 43. Re8+ {[%clk 0:00:06]}  Kh7 {[%clk 0:00:01]} 44. Qe4+ {[%clk 0:00:07]}  g6 {[%clk 0:00:01]} 45. Re1 {[%clk 0:00:04]}  Rg7 {[%clk 0:00:02]} 46. Re7 {[%clk 0:00:04]}  h5 {[%clk 0:00:01]} 47. Rxg7+ {[%clk 0:00:04]}  Kxg7 {[%clk 0:00:02]} 48. Qe7+ {[%clk 0:00:04]}  Qxe7 {[%clk 0:00:02]} 49. Rxe7+ {[%clk 0:00:05]}  Kf6 {[%clk 0:00:02]} 50. Rxa7 {[%clk 0:00:06]} 1-0